fUST/lending_fUST_20240711
["ID","MTS","AMOUNT","RATE_DAILY","PERIOD"]
[331700614,1720662254338,155.18953233,0.00016255,2]
[331700616,1720662317894,11120.82266387,0.00016255,2]
[331700617,1720662358154,1171.54899253,0.00016255,2]
[331700618,1720662361828,155.67742671,0.00016255,2]
[331700619,1720662368133,155.00172826,0.00016255,2]
[331700620,1720662373883,890.57508297,0.00016255,2]
[331700621,1720662374746,156.85716559,0.00016255,2]
[331700622,1720662375196,273.69662088,0.00016255,2]
[331700623,1720662375425,240.78198098,0.00016255,2]
[331700626,1720662417365,297.356346,0.00016255,2]
[331700627,1720662417961,528.11675092,0.00016255,2]
[331700628,1720662434123,-300.0,0.00018686,2]
[331700629,1720662434144,-300.0,0.00018686,2]
[331700630,1720662434166,-47.10385122,0.00018687,2]
[331700632,1720662446768,154.94285855,0.00016255,2]
[331700633,1720662458985,283.48270326,0.00016255,2]
[331700634,1720662476695,375.79706936,0.00016255,2]
[331700636,1720662486309,161.03440768,0.00016255,2]
[331700640,1720662523517,-300.0,0.00018686,2]
[331700641,1720662523555,-300.0,0.00018686,2]
[331700642,1720662523606,-252.50246665,0.00018687,2]
[331700643,1720662523654,-852.50246665,0.00018687,2]
[331700644,1720662523690,-197.27237711,0.00018687,2]
[331700646,1720662548480,-300.0,0.00018544,2]
[331700647,1720662548540,-300.0,0.00018544,2]
[331700648,1720662548579,-290.54801286,0.00018545,2]
[331700649,1720662548630,-890.54801286,0.00018545,2]
[331700650,1720662548678,-260.81511528,0.00018545,2]
[331700651,1720662557239,-16498.95391324,0.00018545,2]
[331700652,1720662557259,-521.397339,0.00018646,2]
[331700653,1720662557279,-17493.82090657,0.00018687,2]
[331700654,1720662557306,-523.2636489,0.0001882,2]
[331700655,1720662557326,-2410.160214,0.00018906,2]
[331700656,1720662557344,-210.35312581,0.00019165,2]
[331700657,1720662557364,-187.98618958,0.00019165,2]
[331700658,1720662557383,-250.0,0.00019508,2]
[331700659,1720662557403,-3000.0,0.0001961,2]
[331700660,1720662557422,-156.81167192,0.00019703,2]
[331700661,1720662557441,-151.10716218,0.0002,2]
[331700662,1720662557461,-260.38179674,0.0002,2]
[331700663,1720662557480,-1001.4068864,0.00020136,2]
[331700664,1720662557501,-24900.0,0.00020137,2]
[331700665,1720662557521,-2195.60883671,0.00020274,2]
[331700666,1720662557547,-420.0,0.00020399,2]
[331700667,1720662557566,-188.6609723,0.00020408,2]
[331700668,1720662557585,-2988.44233665,0.00020512,2]
[331700669,1720662570153,-279.32989247,0.00019703,2]
[331700670,1720662570172,-291.51792815,0.00020512,2]
[331700671,1720662570191,-453.411488,0.00021096,2]
[331700672,1720662570212,-167.029462,0.00021918,2]
[331700673,1720662570232,-155.11608248,0.00022,2]
[331700674,1720662570251,-587.0,0.00022439,2]
[331700675,1720662570272,-167.029462,0.00022773,2]
[331700676,1720662570294,-2195.60883668,0.00023189,2]
[331700677,1720662570313,-163.229186,0.00023247,2]
[331700681,1720662627893,587.52851447,0.00023247,7]
[331700682,1720662628267,150.0,0.000189,2]
[331700856,1720662638926,-620.22497773,0.00023567,2]
[331700858,1720662638937,-167.029462,0.00023627,2]
[331700860,1720662638948,-150.0,0.000239,2]
[331700862,1720662638958,-167.029462,0.00024482,2]
[331700865,1720662638968,-620.01124889,0.00024746,2]
[331700867,1720662638979,-2000.0,0.00025381,2]
[331700868,1720662638989,-300.0,0.0002548,2]
[331700871,1720662638999,-515.08,0.00025481,3]
[331700873,1720662639009,-257.54,0.00025481,3]
[331700874,1720662639019,-772.67,0.00025481,3]
[331700876,1720662639028,-8787.0,0.00025481,3]
[331700879,1720662639039,-7322.5,0.00025481,3]
[331700881,1720662639049,-10544.41,0.0002549,3]
[331700883,1720662639058,-92305.4823186,0.00025491,3]
[331700885,1720662639068,-17492.34236044,0.00025501,5]
[331700886,1720662639080,-52150.85185038,0.00025501,2]
[331700889,1720662639090,-30000.0,0.00025501,2]
[331700890,1720662639101,-500.0,0.00025561,2]
[331700893,1720662639112,-195.01048906,0.00025561,2]
[331700895,1720662639122,-500.0,0.00025561,2]
[331700897,1720662639132,-500.0,0.00025561,2]
[331700899,1720662639141,-500.0,0.00025561,2]
[331700901,1720662639151,-500.0,0.00025561,2]
[331700903,1720662639161,-500.0,0.00025561,2]
[331700905,1720662639170,-500.0,0.00025561,2]
[331700906,1720662639179,-500.0,0.00025561,2]
[331700908,1720662639188,-282.82628391,0.00025561,2]
[331700911,1720662639199,-539.92648663,0.00025561,2]
[331700912,1720662639209,-500.0,0.00025561,2]
[331700915,1720662639219,-500.0,0.00025561,2]
[331700916,1720662639228,-500.0,0.00025561,2]
[331700919,1720662639239,-500.0,0.00025561,2]
[331700921,1720662639249,-500.0,0.00025561,2]
[331700923,1720662639258,-500.0,0.00025561,2]
[331700924,1720662639268,-500.0,0.00025561,2]
[331700927,1720662639278,-500.0,0.00025561,2]
[331700929,1720662639287,-500.0,0.00025561,2]
[331700930,1720662639297,-500.0,0.00025561,2]
[331700933,1720662639308,-500.0,0.00025561,2]
[331700935,1720662639317,-500.0,0.00025561,2]
[331700937,1720662639330,-500.0,0.00025561,2]
[331700939,1720662639339,-500.0,0.00025561,2]
[331700941,1720662639349,-618.62684374,0.00025561,2]
[331700943,1720662639359,-500.0,0.00025561,2]
[331700945,1720662639369,-92305.4823186,0.00025562,3]
[331700947,1720662639378,-13842.65993696,0.00025572,2]
[331700949,1720662639388,-624.02855224,0.00025672,2]
[331700951,1720662639399,-13842.65993694,0.00025815,2]
[331700953,1720662639410,-27307.95217817,0.00025859,3]
[331700955,1720662639423,-64997.53014043,0.00025859,3]
[331700957,1720662639432,-13842.65993694,0.00026058,2]
[331700959,1720662639442,-2195.60883668,0.00026103,2]
[331700961,1720662639452,-92305.4823186,0.00026291,3]
[331700963,1720662639462,-13842.65993694,0.00026301,2]
[331700965,1720662639472,-156.0,0.00026424,62]
[331700967,1720662639482,-156.0,0.00026434,62]
[331700969,1720662639492,-156.0,0.00026444,62]
[331700971,1720662639502,-7458.94652043,0.0002649,2]
[331700973,1720662639513,-500.0,0.00026543,2]
[331700975,1720662639523,-173.35265737,0.00026543,2]
[331700977,1720662639533,-296.67014902,0.00026543,2]
[331700979,1720662639543,-504.84291816,0.00026543,2]
[331700981,1720662639553,-500.0,0.00026543,2]
[331700983,1720662639563,-500.0,0.00026543,2]
[331700985,1720662639574,-500.0,0.00026543,2]
[331700987,1720662639585,-500.0,0.00026543,2]
[331700989,1720662639595,-500.0,0.00026543,2]
[331700991,1720662639605,-500.0,0.00026543,2]
[331700993,1720662639614,-500.0,0.00026543,2]
[331700995,1720662639624,-414.54264782,0.00026543,2]
[331700997,1720662639633,-500.0,0.00026543,2]
[331700999,1720662639643,-500.0,0.00026543,2]
[331701001,1720662639654,-500.0,0.00026543,2]
[331701003,1720662639665,-500.0,0.00026543,2]
[331701005,1720662639675,-13842.65993694,0.00026544,2]
[331701007,1720662639686,-92305.4823186,0.00026554,3]
[331701009,1720662639697,-3320.96384,0.00026555,7]
[331701011,1720662639707,-3320.96384,0.00026555,7]
[331701013,1720662639718,-157.839308,0.00026555,7]
[331701015,1720662639728,-157.839308,0.00026555,7]
[331701017,1720662639739,-731.96319471,0.00026564,2]
[331701019,1720662639750,-88888.0,0.00026564,3]
[331701021,1720662639761,-151.0,0.00026644,7]
[331701023,1720662639772,-1030.16,0.00026851,3]
[331701025,1720662639782,-515.08,0.00026851,3]
[331701027,1720662639791,-18962.37896892,0.00027,4]
[331701029,1720662639801,-151.0,0.00027184,7]
[331701031,1720662639812,-5742.30328228,0.00027184,2]
[331701033,1720662639824,-518.18746811,0.00027194,2]
[331701035,1720662639835,-453.411488,0.00027195,2]
[331701036,1720662639845,-151.0,0.00027397,7]
[331701037,1720662639855,-3320.96384,0.00027397,7]
[331701038,1720662639866,-3320.96384,0.00027397,7]
[331701039,1720662639876,-157.839308,0.00027397,7]
[331701040,1720662639886,-157.839308,0.00027397,7]
[331701041,1720662639896,-500.0,0.00027397,2]
[331701042,1720662639907,-500.0,0.00027397,2]
[331701043,1720662639918,-500.0,0.00027397,2]
[331701044,1720662639928,-418.69823287,0.00027397,2]
[331701045,1720662639938,-500.0,0.00027397,2]
[331701046,1720662639949,-500.0,0.00027397,2]
[331701047,1720662639959,-500.0,0.00027397,2]
[331701048,1720662639969,-500.0,0.00027397,2]
[331701049,1720662639979,-500.0,0.00027397,2]
[331701050,1720662639989,-500.0,0.00027397,2]
[331701051,1720662639999,-500.0,0.00027397,2]
[331701052,1720662640009,-500.0,0.00027397,2]
[331701053,1720662640019,-500.0,0.00027397,2]
[331701054,1720662640029,-500.0,0.00027397,2]
[331701056,1720662640038,-500.0,0.00027397,2]
[331701058,1720662640048,-500.0,0.00027397,2]
[331701060,1720662640057,-500.0,0.00027397,2]
[331701062,1720662640067,-500.0,0.00027397,2]
[331701064,1720662640081,-500.0,0.00027397,2]
[331701066,1720662640090,-500.0,0.00027397,2]
[331701067,1720662640101,-500.0,0.00027397,2]
[331701068,1720662640112,-515.56447602,0.00027397,2]
[331701069,1720662640122,-500.0,0.00027397,2]
[331701070,1720662640132,-500.0,0.00027397,2]
[331701071,1720662640142,-500.0,0.00027397,2]
[331701072,1720662640152,-500.0,0.00027397,2]
[331701073,1720662640161,-500.0,0.00027397,2]
[331701074,1720662640170,-500.0,0.00027397,2]
[331701075,1720662640180,-500.0,0.00027397,2]
[331701076,1720662640190,-500.0,0.00027397,2]
[331701077,1720662640200,-500.0,0.00027397,2]
[331701078,1720662640210,-500.0,0.00027397,2]
[331701079,1720662640221,-500.0,0.00027397,2]
[331701080,1720662640231,-500.0,0.00027397,2]
[331701081,1720662640242,-500.0,0.00027397,2]
[331701082,1720662640252,-500.0,0.00027397,2]
[331701083,1720662640262,-500.0,0.00027397,2]
[331701084,1720662640272,-500.0,0.00027397,2]
[331701085,1720662640281,-500.0,0.00027397,2]
[331701086,1720662640291,-500.0,0.00027397,2]
[331701087,1720662640301,-500.0,0.00027397,2]
[331701088,1720662640310,-500.0,0.00027397,2]
[331701089,1720662640321,-500.0,0.00027397,2]
[331701090,1720662640332,-500.0,0.00027397,2]
[331701091,1720662640342,-500.0,0.00027397,2]
[331701092,1720662640351,-500.0,0.00027397,2]
[331701094,1720662640364,-500.0,0.00027397,2]
[331701096,1720662640373,-500.0,0.00027397,2]
[331701098,1720662640383,-500.0,0.00027397,2]
[331701100,1720662640392,-500.0,0.00027397,2]
[331701107,1720662640516,-500.0,0.00027397,2]
[331701109,1720662640527,-500.0,0.00027397,2]
[331701111,1720662640536,-500.0,0.00027397,2]
[331701112,1720662640545,-500.0,0.00027397,2]
[331701113,1720662640555,-500.0,0.00027397,2]
[331701114,1720662640563,-500.0,0.00027397,2]
[331701115,1720662640574,-500.0,0.00027397,2]
[331701116,1720662640583,-500.0,0.00027397,2]
[331701117,1720662640592,-500.0,0.00027397,2]
[331701118,1720662640601,-500.0,0.00027397,2]
[331701119,1720662640610,-500.0,0.00027397,2]
[331701120,1720662640619,-614.36177338,0.00027397,2]
[331701121,1720662640628,-151.0,0.00027397,7]
[331701122,1720662640637,-151.0,0.00027397,7]
[331701123,1720662640646,-152.418333,0.00027397,7]
[331701124,1720662640656,-151.0,0.00027397,7]
[331701125,1720662640666,-151.0,0.00027397,7]
[331701126,1720662640676,-755.65066,0.00027397,7]
[331701127,1720662640685,-755.65066,0.00027397,7]
[331701128,1720662640695,-856.414137,0.00027397,7]
[331701129,1720662640704,-151.0,0.00027397,2]
[331701130,1720662640714,-856.414137,0.00027397,7]
[331701131,1720662640723,-151.0,0.00027397,2]
[331701132,1720662640733,-151.0,0.00027397,7]
[331701133,1720662640742,-151.0,0.00027397,7]
[331701134,1720662640751,-203.32119,0.00027397,7]
[331701135,1720662640760,-203.32119,0.00027397,7]
[331701136,1720662640769,-151.0,0.00027397,7]
[331701137,1720662640778,-154.106056,0.00027397,7]
[331701138,1720662640788,-153.275478,0.00027397,7]
[331701139,1720662640797,-151.0,0.00027397,7]
[331701140,1720662640807,-520.028921,0.00027397,7]
[331701141,1720662640816,-151.0,0.00027397,7]
[331701142,1720662640828,-520.028921,0.00027397,7]
[331701143,1720662640838,-520.028921,0.00027397,7]
[331701144,1720662640847,-520.028921,0.00027397,7]
[331701145,1720662640856,-156.672374,0.00027397,7]
[331701146,1720662640866,-156.672374,0.00027397,7]
[331701147,1720662640876,-151.0,0.00027397,7]
[331701148,1720662640885,-152.082886,0.00027397,7]
[331701149,1720662640895,-156.672374,0.00027397,7]
[331701150,1720662640904,-156.672374,0.00027397,7]
[331701151,1720662640914,-179.089878,0.00027397,7]
[331701152,1720662640923,-179.089878,0.00027397,7]
[331701153,1720662640933,-179.089878,0.00027397,7]
[331701154,1720662640942,-179.089878,0.00027397,7]
[331701155,1720662640952,-359.38673,0.00027397,7]
[331701156,1720662640962,-359.38673,0.00027397,7]
[331701157,1720662640971,-151.0,0.00027397,2]
[331701158,1720662640981,-151.0,0.00027397,7]
[331701159,1720662640990,-359.38673,0.00027397,7]
[331701160,1720662640999,-151.0,0.00027397,2]
[331701161,1720662641009,-151.0,0.00027397,7]
[331701162,1720662641018,-359.38673,0.00027397,7]
[331701163,1720662641027,-166.563049,0.00027397,120]
[331701164,1720662641036,-151.0,0.00027397,7]
[331701165,1720662641046,-151.0,0.00027397,7]
[331701166,1720662641055,-2262.648393,0.00027397,7]
[331701167,1720662641064,-2262.648393,0.00027397,7]
[331701168,1720662641075,-2262.648393,0.00027397,7]
[331701169,1720662641084,-2262.648393,0.00027397,7]
[331701170,1720662641094,-151.0,0.00027397,7]
[331701171,1720662641103,-151.0,0.00027397,7]
[331701172,1720662641115,-676.11548,0.00027397,7]
[331701173,1720662641124,-676.11548,0.00027397,7]
[331701174,1720662641133,-676.11548,0.00027397,7]
[331701175,1720662641143,-676.11548,0.00027397,7]
[331701176,1720662641152,-43673.6362395,0.000275,2]
[331701177,1720662641161,-151.0,0.000275,7]
[331701178,1720662641170,-151.0,0.000275,7]
[331701179,1720662641180,-151.0,0.000275,7]
[331701180,1720662641189,-151.0,0.000275,7]
[331701181,1720662641198,-151.0,0.000275,7]
[331701182,1720662641207,-151.0,0.000275,7]
[331701183,1720662641216,-205.607222,0.000275,7]
[331701184,1720662641226,-154.261413,0.000275,7]
[331701185,1720662641235,-151.0,0.000275,7]
[331701186,1720662641244,-202.60650965,0.00027587,2]
[331701187,1720662641253,-151.0,0.00027613,7]
[331701188,1720662641262,-292.472805,0.00027613,7]
[331701189,1720662641272,-520.028921,0.00027613,7]
[331701190,1720662641280,-520.028921,0.00027613,7]
[331701191,1720662641289,-156.672374,0.00027613,7]
[331701192,1720662641298,-156.672374,0.00027613,7]
[331701193,1720662641307,-179.089878,0.00027613,7]
[331701194,1720662641316,-179.089878,0.00027613,7]
[331701195,1720662641328,-359.38673,0.00027613,7]
[331701196,1720662641338,-151.0,0.00027613,7]
[331701197,1720662641347,-359.38673,0.00027613,7]
[331701198,1720662641357,-151.0,0.00027613,2]
[331701199,1720662641366,-151.0,0.00027613,7]
[331701200,1720662641375,-151.0,0.00027613,7]
[331701201,1720662641384,-2262.648393,0.00027613,7]
[331701202,1720662641394,-2262.648393,0.00027613,7]
[331701203,1720662641403,-191.07291461,0.00027899,2]
[331701204,1720662641412,-1361.21103541,0.000279,2]
[331701205,1720662641421,-521.397339,0.00027968,2]
[331701206,1720662641431,-19633.41811921,0.0002799,2]
[331701207,1720662641440,-161.148234,0.0002799,7]
[331701208,1720662641449,-3320.96384,0.0002799,7]
[331701209,1720662641458,-676.11548,0.0002799,7]
[331701210,1720662641467,-3320.96384,0.0002799,7]
[331701211,1720662641476,-676.11548,0.0002799,7]
[331701212,1720662641485,-157.839308,0.0002799,7]
[331701213,1720662641494,-157.839308,0.0002799,7]
[331701214,1720662641503,-151.0,0.00027999,7]
[331701215,1720662641512,-492.55302453,0.00027999,2]
[331701216,1720662641522,-282.2404083,0.00028,30]
[331701217,1720662641531,-503.84441816,0.00028,2]
[331701218,1720662641539,-420.0,0.00028028,2]
[331701219,1720662641548,-158.99821132,0.00028178,2]
[331701220,1720662641558,-799.23663089,0.000285,2]
[331701221,1720662641567,-151.0,0.0002876,7]
[331701222,1720662641577,-151.0,0.0002876,7]
[331701223,1720662641586,-151.0,0.0002876,7]
[331701224,1720662641595,-151.0,0.0002876,7]
[331701225,1720662641604,-151.0,0.0002876,7]
[331701226,1720662641612,-151.0,0.0002876,7]
[331701227,1720662641621,-151.0,0.0002876,7]
[331701228,1720662641630,-151.0,0.0002876,7]
[331701229,1720662641639,-151.0,0.0002876,7]
[331701230,1720662641648,-151.0,0.0002876,7]
[331701231,1720662641657,-151.0,0.0002876,7]
[331701232,1720662641667,-755.65066,0.0002876,7]
[331701233,1720662641675,-755.65066,0.0002876,7]
[331701234,1720662641685,-856.414137,0.0002876,7]
[331701235,1720662641694,-151.0,0.0002876,2]
[331701236,1720662641704,-856.414137,0.0002876,7]
[331701237,1720662641713,-151.0,0.0002876,2]
[331701238,1720662641722,-203.32119,0.0002876,7]
[331701239,1720662641732,-203.32119,0.0002876,7]
[331701240,1720662641741,-101494.70716928,0.0002877,2]
[331701241,1720662641751,-169.050809,0.0002877,7]
[331701242,1720662641760,-520.028921,0.0002877,7]
[331701243,1720662641770,-520.028921,0.0002877,7]
[331701244,1720662641779,-156.672374,0.0002877,7]
[331701245,1720662641788,-156.672374,0.0002877,7]
[331701246,1720662641797,-179.089878,0.0002877,7]
[331701247,1720662641807,-179.089878,0.0002877,7]
[331701248,1720662641816,-359.38673,0.0002877,7]
[331701249,1720662641827,-359.38673,0.0002877,7]
[331701250,1720662641836,-151.0,0.0002877,7]
[331701251,1720662641846,-151.0,0.0002877,2]
[331701252,1720662641855,-151.0,0.0002877,7]
[331701253,1720662641865,-151.0,0.0002877,7]
[331701254,1720662641875,-151.0,0.0002877,7]
[331701255,1720662641885,-2262.648393,0.0002877,7]
[331701256,1720662641895,-2262.648393,0.0002877,7]
[331701257,1720662641904,-151.0,0.0002877,7]
[331701258,1720662641914,-151.0,0.0002877,7]
[331701259,1720662641923,-3320.96384,0.0002877,7]
[331701260,1720662641932,-676.11548,0.0002877,7]
[331701261,1720662641941,-3320.96384,0.0002877,7]
[331701262,1720662641951,-676.11548,0.0002877,7]
[331701263,1720662641960,-157.839308,0.0002877,7]
[331701264,1720662641969,-157.839308,0.0002877,7]
[331701265,1720662641978,-1000.0,0.00029,2]
[331701266,1720662641987,-21514.26631988,0.00029018,5]
[331701267,1720662641996,-2195.60883668,0.00029018,2]
[331701268,1720662642005,-366.69138635,0.0002947,2]
[331701269,1720662642015,-5293.69736034,0.00029482,2]
[331701270,1720662642024,-150.60173835,0.00029535,2]
[331701271,1720662642033,-26753.21043197,0.00029765,2]
[331701272,1720662642042,-151.0,0.00029765,7]
[331701273,1720662642051,-151.0,0.00029765,7]
[331701274,1720662642060,-151.160005,0.00029765,7]
[331701275,1720662642070,-151.0,0.00029765,7]
[331701276,1720662642083,-755.65066,0.00029765,7]
[331701277,1720662642094,-755.65066,0.00029765,7]
[331701278,1720662642103,-856.414137,0.00029765,7]
[331701279,1720662642116,-151.0,0.00029765,2]
[331701280,1720662642125,-856.414137,0.00029765,7]
[331701281,1720662642134,-151.0,0.00029765,2]
[331701282,1720662642142,-203.32119,0.00029765,7]
[331701283,1720662642151,-203.32119,0.00029765,7]
[331701284,1720662642160,-151.0,0.00029793,7]
[331701285,1720662642169,-524.1077099,0.00029793,2]
[331701286,1720662642178,-249.67315643,0.000298,120]
[331701287,1720662642187,-10588.8376518,0.00029803,2]
[331701288,1720662642197,-151.0,0.00029813,7]
[331701289,1720662642206,-151.0,0.00029813,7]
[331701290,1720662642215,-151.0,0.00029813,7]
[331701291,1720662642226,-160.11041109,0.00029813,2]
[331701292,1720662642235,-151.0,0.00029823,7]
[331701293,1720662642244,-151.0,0.00029823,7]
[331701294,1720662642253,-151.0,0.00029823,7]
[331701295,1720662642262,-229.23922118,0.00029861,2]
[331701296,1720662642271,-308.57307675,0.00029861,2]
[331701297,1720662642281,-155.45465387,0.00029861,2]
[331701298,1720662642290,-154.59033561,0.00029999,2]
[331701299,1720662642300,-171.48721802,0.00029999,2]
[331701300,1720662642309,-170.51355908,0.0003,4]
[331701301,1720662642318,-1153.89206966,0.0003,2]
[331701302,1720662642330,-150.37973177,0.0003,7]
[331701303,1720662642339,-154.59033561,0.0003,4]
[331701304,1720662642347,-8677.91579166,0.0003,5]
[331701305,1720662642356,-219.0,0.0003,2]
[331701306,1720662642366,-3000.0,0.000306,4]
[331701307,1720662642375,-3000.0,0.0003061,4]
[331701308,1720662642384,-3000.0,0.0003062,4]
[331701309,1720662642393,-3000.0,0.0003063,4]
[331701310,1720662642402,-3000.0,0.0003064,5]
[331701311,1720662642412,-3000.0,0.0003065,5]
[331701312,1720662642421,-3000.0,0.0003066,5]
[331701313,1720662642431,-3000.0,0.0003067,5]
[331701314,1720662642440,-3208.309868,0.0003068,5]
[331701315,1720662642449,-169.0,0.00031,6]
[331701316,1720662642458,-155.32790151,0.00031175,2]
[331701317,1720662642468,-2195.60883668,0.00031933,2]
[331701318,1720662642478,-361.5,0.00032,120]
[331701319,1720662642488,-150.0,0.00032175,2]
[331701320,1720662642499,-104084.26164569,0.00032177,2]
[331701321,1720662642510,-228.303785,0.00032177,7]
[331701322,1720662642521,-152.962697,0.00032177,7]
[331701323,1720662642531,-151.0,0.00032177,7]
[331701324,1720662642541,-151.0,0.00032177,7]
[331701325,1720662642550,-151.0,0.00032177,7]
[331701326,1720662642561,-151.0,0.00032177,7]
[331701327,1720662642571,-151.0,0.00032177,7]
[331701328,1720662642582,-151.0,0.00032177,7]
[331701329,1720662642591,-151.0,0.00032177,7]
[331701330,1720662642600,-151.0,0.00032177,7]
[331701331,1720662642611,-755.65066,0.00032177,7]
[331701332,1720662642620,-755.65066,0.00032177,7]
[331701333,1720662642630,-856.414137,0.00032177,7]
[331701334,1720662642639,-151.0,0.00032177,2]
[331701336,1720662642648,-856.414137,0.00032177,7]
[331701337,1720662642658,-151.0,0.00032177,2]
[331701338,1720662642667,-203.32119,0.00032177,7]
[331701339,1720662642676,-203.32119,0.00032177,7]
[331701340,1720662642684,-520.028921,0.00032177,7]
[331701341,1720662642694,-520.028921,0.00032177,7]
[331701342,1720662642703,-156.672374,0.00032177,7]
[331701343,1720662642712,-156.672374,0.00032177,7]
[331701344,1720662642721,-179.089878,0.00032177,7]
[331701346,1720662642730,-179.089878,0.00032177,7]
[331701347,1720662642739,-359.38673,0.00032177,7]
[331701348,1720662642748,-359.38673,0.00032177,7]
[331701349,1720662642758,-151.0,0.00032177,7]
[331701350,1720662642767,-245.902831,0.00032177,2]
[331701351,1720662642776,-151.0,0.00032177,7]
[331701352,1720662642786,-151.0,0.00032177,7]
[331701353,1720662642795,-175.010961,0.00032177,7]
[331701354,1720662642804,-2262.648393,0.00032177,7]
[331701355,1720662642813,-2262.648393,0.00032177,7]
[331701356,1720662642826,-153.509778,0.00032177,7]
[331701358,1720662642835,-151.0,0.00032177,7]
[331701360,1720662642844,-3320.96384,0.00032177,7]
[331701361,1720662642854,-676.11548,0.00032177,7]
[331701362,1720662642864,-3320.96384,0.00032177,7]
[331701364,1720662642873,-676.11548,0.00032177,7]
[331701365,1720662642883,-157.839308,0.00032177,7]
[331701366,1720662642892,-157.839308,0.00032177,7]
[331701367,1720662642901,-155.43131,0.00032189,7]
[331701368,1720662642910,-151.0,0.00032189,7]
[331701369,1720662642919,-154.43791,0.00032189,7]
[331701370,1720662642928,-376.01287,0.00032189,7]
[331701371,1720662642938,-376.01287,0.00032189,7]
[331701372,1720662642947,-178.707988,0.00032189,7]
[331701373,1720662642956,-178.707988,0.00032189,7]
[331701374,1720662642966,-284.63680701,0.00032199,3]
[331701375,1720662642975,-575.64280493,0.00032199,4]
[331701376,1720662642985,-5612.49349945,0.00032199,4]
[331701377,1720662642994,-190.02130099,0.00032199,4]
[331701378,1720662643003,-151.0,0.00032199,7]
[331701379,1720662643013,-178.53927687,0.00032199,7]
[331701380,1720662643022,-376.01287,0.00032199,7]
[331701381,1720662643031,-376.01287,0.00032199,7]
[331701382,1720662643040,-178.707988,0.00032199,7]
[331701383,1720662643049,-178.707988,0.00032199,7]
[331701384,1720662643059,-248204.05367177,0.00032199,3]
[331701391,1720662643360,-92903.74955388,0.00032199,3]
[331701392,1720662643369,-151.0,0.00032199,7]
[331701393,1720662643379,-151.0,0.00032199,7]
[331701394,1720662643388,-151.0,0.00032199,7]
[331701395,1720662643397,-151.0,0.00032199,7]
[331701396,1720662643406,-163.581925,0.00032199,7]
[331701397,1720662643415,-151.0,0.00032199,7]
[331701398,1720662643424,-151.0,0.00032199,7]
[331701399,1720662643432,-755.65066,0.00032199,7]
[331701400,1720662643441,-755.65066,0.00032199,7]
[331701401,1720662643450,-856.414137,0.00032199,7]
[331701402,1720662643459,-151.0,0.00032199,2]
[331701403,1720662643469,-856.414137,0.00032199,7]
[331701404,1720662643478,-151.0,0.00032199,2]
[331701405,1720662643487,-203.32119,0.00032199,7]
[331701406,1720662643496,-203.32119,0.00032199,7]
[331701407,1720662643506,-520.028921,0.00032199,7]
[331701408,1720662643515,-520.028921,0.00032199,7]
[331701409,1720662643524,-156.672374,0.00032199,7]
[331701410,1720662643533,-156.672374,0.00032199,7]
[331701411,1720662643543,-179.089878,0.00032199,7]
[331701412,1720662643553,-179.089878,0.00032199,7]
[331701413,1720662643562,-359.38673,0.00032199,7]
[331701414,1720662643571,-151.0,0.00032199,7]
[331701415,1720662643586,-359.38673,0.00032199,7]
[331701416,1720662643595,-240.086511,0.00032199,7]
[331701417,1720662643605,-151.0,0.00032199,7]